bitfinex-derivatives/quotes_ETHF0:USTF0_20250607
["timestamp","ask_amount","ask_price","bid_price","bid_amount"]
[1749300409444,2.18409,2502.3,2502.1,0.79883]
[1749300409649,0.6633,2502.2,2502.1,0.79883]
[1749300410752,0.6633,2502.2,2502.0,4.00667]
[1749300410942,0.79886,2502.1,2502.0,4.00669]
[1749300411344,2.06316,2502.1,2502.0,0.79889]
[1749300412338,2.06318,2502.1,2501.9,0.79889]
[1749300412748,2.06318,2502.1,2502.0,0.79889]
[1749300413150,0.79892,2501.9,2501.8,0.16226775]
[1749300414943,4.00672,2501.9,2501.8,0.16226775]
[1749300415149,4.00672,2501.9,2501.7,0.1614223]
[1749300415150,0.79895,2501.8,2501.7,0.1614223]
[1749300415352,3.79423954,2501.8,2501.7,0.1614223]
[1749300415545,3.79424463,2501.8,2501.7,0.1614223]
[1749300416147,2.82355,2501.8,2501.7,0.1614223]
[1749300423556,0.79905,2501.5,2501.4,0.16036194]
[1749300423748,9.26885,2501.5,2501.4,0.16036194]
[1749300424350,10.60255,2501.5,2501.4,0.16036194]
[1749300425059,6.06105,2501.5,2501.4,0.95944194]
[1749300425448,1.45953,2501.6,2501.5,0.79905]
[1749300425646,6.04503,2501.6,2501.5,0.79905]
[1749300425948,5.246,2501.6,2501.5,0.79905]
[1749300426148,5.31491172,2501.8,2501.6,0.79899]
[1749300426349,0.79898,2501.7,2501.6,0.79899]
[1749300426549,5.31491172,2501.8,2501.6,0.79899]
[1749300426550,6.11388172,2501.8,2501.6,0.79899]
[1749300426854,6.11388172,2501.8,2501.7,0.79899]
[1749300427048,5.31491172,2501.8,2501.7,0.79899]
[1749300427248,0.06891172,2501.8,2501.7,0.79899]
[1749300429060,0.86786172,2501.8,2501.7,0.79899]
[1749300429455,0.79901,2501.7,2501.5,2.74594]
[1749300429754,0.79898,2501.7,2501.5,1.9469]
[1749300429953,0.79902,2501.6,2501.5,1.9469]
[1749300431359,0.79902,2501.6,2501.5,2.74595]
[1749300431757,0.06891172,2501.8,2501.5,2.74595]
[1749300432647,0.79902,2501.6,2501.5,2.74595]
[1749300433264,0.79902,2501.7,2501.5,2.74592]
[1749300433458,0.79902,2501.7,2501.5,1.9469]
[1749300433761,0.86789172,2501.8,2501.5,1.9469]
[1749300433956,0.86789172,2501.8,2501.6,0.79899]
[1749300434165,0.86789172,2501.8,2501.7,1.3383]
[1749300434361,0.79898,2501.7,2501.5,1.44503]
[1749300434555,0.79898,2501.7,2501.6,1.3383]
[1749300436257,0.79898,2501.7,2501.6,2.13732]
[1749300436463,0.79898,2501.7,2501.6,1.3383]
[1749300437159,0.06891172,2501.8,2501.7,0.79898]
[1749300437560,0.06891172,2501.8,2501.7,5.79898]
[1749300439864,4.00665,2502.2,2502.1,0.79886]
[1749300440260,0.79886,2502.1,2502.0,0.79887]
[1749300440467,0.79885,2502.2,2502.1,0.6486]
[1749300441874,0.79892,2501.9,2501.8,3.2078]
[1749300443269,0.79892,2501.9,2501.8,4.00675]
[1749300443472,0.79892,2501.9,2501.8,3.2078]
[1749300445466,0.7989,2502.0,2501.8,3.2078]
[1749300445664,0.79892,2501.9,2501.8,4.00672]
[1749300445860,3.2078,2502.5,2501.9,1.99731]
[1749300446064,0.96807519,2502.4,2502.3,0.79879]
[1749300446265,0.6529,2502.6,2502.5,0.79873]
[1749300446468,2.41068654,2502.6,2502.5,0.79873]
[1749300446771,1.45161,2502.6,2502.5,0.79873]
[1749300446973,0.79873,2502.5,2502.4,0.79874]
[1749300447267,0.79876,2502.4,2502.3,1.294]
[1749300447473,3.2078,2502.5,2502.1,0.6644]
[1749300447769,0.79881,2502.3,2502.2,0.79882]
[1749300449174,0.79882,2502.2,2502.1,0.6644]
[1749300450068,0.79881,2502.3,2502.1,1.46326]
[1749300450267,3.2078,2502.5,2502.1,1.46326]
[1749300450572,0.79881,2502.3,2502.1,0.6644]
[1749300450768,0.79881,2502.3,2502.2,0.79882]
[1749300450975,0.79881,2502.3,2502.1,1.46323]
[1749300451170,0.79882,2502.2,2502.1,1.46323]
[1749300451366,3.2078,2502.5,2502.1,1.46323]
[1749300451569,0.79881,2502.3,2502.2,0.79882]
[1749300453277,0.79886,2502.1,2502.0,0.79887]
[1749300453978,0.6557,2502.1,2502.0,0.79887]
[1749300457582,0.74271172,2502.2,2502.1,0.79886]
[1749300458877,0.06891172,2502.2,2502.1,0.79886]
[1749300461978,0.86773172,2502.2,2502.1,0.79886]
[1749300463075,0.79887,2502.1,2502.0,0.79886]
[1749300463279,2.17387,2502.1,2502.0,0.79886]
[1749300463883,0.79889,2502.0,2501.9,4.0067]
[1749300464076,0.6952,2502.0,2501.9,4.00672]
[1749300464781,1.49409,2502.0,2501.9,4.00672]
[1749300465686,0.6952,2502.0,2501.9,4.00672]
[1749300466778,2.6476,2502.0,2501.9,4.00672]
[1749300467181,2.6476,2502.0,2501.9,3.2078]
[1749300467182,3.44649,2502.0,2501.9,3.2078]
[1749300467383,2.6476,2502.0,2501.9,0.79892]
[1749300467779,7.8746,2502.0,2501.6,3.2078]
[1749300467978,7.8746,2502.0,2501.4,0.16036194]
[1749300467979,3.2078,2501.8,2501.4,0.16036194]
[1749300468179,0.79897,2501.8,2501.6,0.799]
[1749300468787,5.227,2501.8,2501.7,0.79896]
[1749300468989,0.79898,2501.7,2501.5,0.79904]
[1749300469188,8.4348,2501.8,2501.4,0.16036194]
[1749300469390,0.79905,2501.5,2501.4,0.16036194]
[1749300469887,1.45594,2501.6,2501.4,0.95944194]
[1749300470187,0.6569,2501.6,2501.5,0.79905]
[1749300470382,5.8839,2501.6,2501.5,0.79905]
[1749300473793,0.6569,2501.6,2501.5,0.79905]
[1749300473994,1.45592,2501.6,2501.5,0.79905]
[1749300474194,0.79905,2501.5,2501.4,0.16036194]
[1749300479595,2.14035,2501.5,2501.4,0.16036194]
[1749300480096,6.31838972,2501.5,2501.4,0.16036194]
[1749300482297,6.02705,2501.5,2501.4,0.16036194]
[1749300482890,10.55655,2501.5,2501.4,0.16036194]
[1749300483090,16.52624965,2501.5,2501.4,0.16036194]
[1749300483293,0.79911,2501.3,2501.2,0.15776518]
[1749300483494,1.99779,2501.3,2500.8,0.16199257]
[1749300483697,0.79927,2500.8,2500.6,0.15940722]
[1749300483893,6.02727,2500.8,2500.6,0.15940722]
[1749300484201,7.98347,2500.8,2500.6,0.15940722]
[1749300485103,2.75547,2500.8,2500.6,0.15940722]
[1749300485398,6.66177,2500.8,2500.6,0.95872722]
[1749300485601,6.66177,2500.8,2500.6,0.15940722]
[1749300486591,8.05127,2500.8,2500.6,0.15940722]
[1749300486795,8.68887,2500.8,2500.6,0.15940722]
[1749300488402,0.7994,2500.4,2500.3,0.16230109]
[1749300488595,9.2172,2500.4,2500.3,0.16230109]
[1749300488800,8.4178,2500.4,2500.1,0.15849649]
[1749300489102,0.79946,2500.2,2500.1,0.15849649]
[1749300489503,2.86316,2500.2,2500.1,0.15849649]
[1749300489901,2.86316,2500.2,2500.0,0.15899197]
[1749300489902,0.7995,2500.1,2500.0,0.15899197]
[1749300490102,4.6099,2500.1,2499.8,0.15659808]
[1749300490403,0.79956,2499.9,2499.8,0.15659808]
[1749300490794,2.90296,2499.9,2499.8,0.15659808]
[1749300492101,6.71286,2499.9,2499.8,0.15659808]
[1749300493899,1.50086,2499.9,2499.8,0.15659808]
[1749300494103,6.71286,2499.9,2499.8,0.15659808]
[1749300495896,0.79954,2500.0,2499.8,0.95614808]
[1749300496104,5.212,2499.9,2499.8,0.95618808]
[1749300496306,5.212,2499.9,2499.8,2.32808808]
[1749300496508,3.2078,2500.1,2500.0,0.79952]
[1749300496708,3.2078,2500.1,2499.8,1.52849808]
[1749300496907,0.79954,2500.0,2499.9,0.79954]
[1749300497108,3.2078,2500.1,2500.0,0.79952]
[1749300497509,3.2078,2500.1,2499.8,1.52849808]
[1749300497898,0.79954,2500.0,2499.9,0.79955]
[1749300498103,3.2078,2500.1,2500.0,0.79952]
[1749300498508,0.79944,2500.3,2500.2,0.79946]
[1749300498702,0.79946,2500.2,2500.1,0.79948]
[1749300498907,6.01145,2500.3,2500.2,0.79946]
[1749300499311,0.79946,2500.2,2500.1,0.79947]
[1749300499809,5.212,2500.3,2500.0,0.7995]
[1749300500009,0.79948,2500.2,2500.1,0.79948]
[1749300500204,0.7995,2500.1,2500.0,0.79951]
[1749300501007,0.79948,2500.2,2500.1,0.79948]
[1749300501818,6.01145,2500.3,2500.2,0.79946]
[1749300502502,0.79938,2500.5,2500.4,0.79938]
[1749300502710,3.2078,2500.6,2500.1,1.996]
[1749300502903,4.00714,2500.6,2500.5,0.79936]
[1749300503510,0.7993,2500.8,2500.3,5.20638]
[1749300503716,6.01125,2500.9,2500.8,0.79927]
[1749300505311,5.212,2500.9,2500.8,0.79927]
[1749300505614,0.79917,2501.1,2500.6,5.20614]
[1749300505816,6.01116,2501.2,2500.7,2.0449]
[1749300506015,6.01116,2501.2,2500.8,1.3504]
[1749300506217,6.01116,2501.2,2501.1,0.79917]
[1749300507112,24.99310635,2501.3,2501.2,0.79914]
[1749300507317,0.79921,2501.0,2500.8,1.3504]
[1749300507519,0.79921,2501.0,2500.9,0.79924]
[1749300508021,0.79919,2501.1,2501.0,0.79919]
[1749300508221,0.79916,2501.2,2501.0,0.79919]
[1749300508416,0.79916,2501.2,2501.1,0.79917]
[1749300508815,24.99311635,2501.3,2501.2,0.79914]
[1749300509318,0.80511635,2501.3,2501.2,0.79914]
[1749300510912,0.00598635,2501.3,2501.1,0.79915]
[1749300511120,0.80512635,2501.3,2501.0,1.2864]
[1749300511421,0.79918,2501.1,2501.0,2.0856]
[1749300511725,0.79921,2501.0,2500.9,4.70774]
[1749300513418,0.79921,2501.0,2500.9,1.49994]
[1749300515725,0.79919,2501.1,2501.0,0.79921]
[1749300516123,0.79921,2501.0,2500.9,0.7007]
[1749300517324,0.79919,2501.1,2501.0,0.7992]
[1749300517521,1.45806,2501.2,2501.1,0.79917]
[1749300518025,0.07489807,2501.3,2501.2,0.79914]
[1749300518214,0.87400807,2501.3,2501.2,0.79914]
[1749300519025,0.07489807,2501.3,2501.2,0.79914]
[1749300519410,0.87400807,2501.3,2501.2,0.79914]
[1749300519822,0.07489807,2501.3,2501.2,0.79914]
[1749300521025,0.87400807,2501.3,2501.2,0.79914]
[1749300521229,0.07489807,2501.3,2501.2,0.79914]
[1749300522822,0.79915,2501.2,2501.1,0.79915]
[1749300523026,0.07489807,2501.3,2501.2,0.79914]
[1749300524024,0.87400807,2501.3,2501.2,0.79914]
[1749300524424,0.79915,2501.2,2501.1,0.79915]
[1749300524823,0.07489807,2501.3,2500.9,3.9085]
[1749300525123,0.07489807,2501.3,2500.9,1.49992]
[1749300525335,0.79919,2501.1,2501.0,0.79919]
[1749300525721,1.48239,2501.1,2501.0,0.79919]
[1749300526120,0.6832,2501.1,2501.0,0.79919]
[1749300526432,1.48238,2501.1,2501.0,0.79919]
[1749300527632,0.7992,2501.0,2500.9,1.4999]
[1749300527832,0.6832,2501.1,2500.7,5.8865]
[1749300528129,1.4824,2501.1,2501.0,0.79921]
[1749300530028,0.6832,2501.1,2501.0,0.79921]
[1749300531124,0.75211172,2501.1,2501.0,0.79921]
[1749300531430,1.55128172,2501.1,2501.0,0.79921]
[1749300532227,0.75211172,2501.1,2501.0,0.79921]
[1749300532427,0.06891172,2501.1,2501.0,0.79921]
[1749300532829,0.06891172,2501.1,2501.0,1.48181]
[1749300535735,0.06891172,2501.1,2501.0,2.86771]
[1749300539340,0.06891172,2501.1,2501.0,1.48181]
[1749300541936,0.06891172,2501.1,2501.0,2.83111]
[1749300543537,0.06891172,2501.1,2501.0,1.48181]
[1749300544638,0.06891172,2501.1,2501.0,0.79921]
[1749300544835,0.86808172,2501.1,2501.0,0.79921]
[1749300545033,0.79921,2501.0,2500.9,4.00701]
[1749300545238,1.45391,2501.0,2500.9,4.00701]
[1749300545537,2.79571,2501.0,2500.9,4.00701]
[1749300545934,1.9965,2501.0,2500.9,4.00701]
[1749300548542,2.7957,2501.0,2500.9,4.00701]
[1749300548844,1.9965,2501.0,2500.9,4.00701]
[1749300549043,2.7957,2501.0,2500.9,4.00701]
[1749300550047,3.4867,2501.0,2500.9,4.00701]
[1749300550635,2.6875,2501.0,2500.9,4.00701]
[1749300551647,0.06891172,2501.1,2501.0,0.7992]
[1749300551841,0.06891172,2501.1,2501.0,1.4415]
[1749300556746,0.06891172,2501.1,2501.0,2.8364]
[1749300558547,0.06891172,2501.1,2501.0,5.97219415]
[1749300560953,0.06891172,2501.1,2501.0,4.57729415]
[1749300561654,0.06891172,2501.1,2501.0,1.4415]
[1749300564055,0.06891172,2501.1,2501.0,0.7992]
[1749300566252,0.06891172,2501.1,2501.0,2.1741]
[1749300567950,0.06891172,2501.1,2501.0,5.30989415]
[1749300571258,0.6925,2501.6,2501.1,1.99794]
[1749300571457,0.6925,2501.6,2501.5,0.79905]
[1749300575957,1.49151,2501.6,2501.5,0.79905]
[1749300576163,2.88721,2501.6,2501.5,0.79905]
[1749300576455,2.0882,2501.6,2501.5,0.79905]
[1749300577264,0.6925,2501.6,2501.5,0.79905]
[1749300577559,0.64709832,2501.8,2501.7,0.79898]
[1749300577762,1.28309832,2501.8,2501.7,0.79898]
[1749300585462,0.64199832,2501.8,2501.7,0.79898]
[1749300585660,0.00599832,2501.8,2501.7,0.79898]
[1749300588776,0.6762,2502.1,2502.0,0.79889]
[1749300591971,2.76986,2502.1,2501.9,0.7989]
[1749300592269,2.76986,2502.1,2501.6,9.0602]
[1749300592465,1.2948,2502.0,2501.9,0.79892]
[1749300594774,0.6762,2502.1,2502.0,0.79889]
[1749300596871,2.79746,2502.1,2501.9,0.7989]
[1749300597069,1.9986,2502.1,2502.0,0.79889]
[1749300601471,5.95580832,2502.3,2502.2,0.79882]
[1749300601678,1.6811469,2502.3,2502.2,0.79882]
[1749300601980,0.69219832,2502.3,2502.2,0.79882]
[1749300602479,0.00599832,2502.3,2502.2,0.79882]
[1749300608580,0.00599832,2502.3,2502.0,1.3342]
[1749300608781,1.27119832,2502.3,2502.0,0.79888]
[1749300608979,0.79889,2502.1,2502.0,0.79888]
[1749300609579,2.06409,2502.1,2502.0,0.79888]
[1749300610985,2.06409,2502.1,2501.7,0.6788]
[1749300610986,0.7989,2502.0,2501.9,0.79892]
[1749300611281,0.7989,2502.0,2501.7,0.6788]
[1749300611481,0.7989,2502.0,2501.8,0.79895]
[1749300611683,0.7989,2502.0,2501.7,0.6788]
[1749300612078,0.79898,2501.7,2501.6,3.2078]
[1749300612383,0.79896,2501.8,2501.6,4.0068]
[1749300612582,0.6854,2501.7,2501.6,4.0068]
[1749300613487,1.9523,2501.7,2501.4,0.79906]
[1749300613688,0.79903,2501.6,2501.4,0.79906]
[1749300613887,2.06593,2501.6,2501.4,0.79906]
[1749300614387,2.06593,2501.6,2501.5,0.79905]
[1749300614784,2.06593,2501.6,2501.3,0.00599832]
[1749300614990,0.79908,2501.4,2501.3,0.00599832]
[1749300615784,6.2648597,2501.4,2501.3,0.00599832]
[1749300617594,5.27378,2501.4,2501.3,0.00599832]
[1749300617779,1.99788,2501.2,2500.6,0.6941]
[1749300618089,0.79926,2500.9,2500.7,0.79928]
[1749300618290,0.79929,2500.8,2500.6,1.49342]
[1749300618485,0.79927,2500.8,2500.6,0.79933]
[1749300618685,0.6829,2500.7,2500.6,0.79933]
[1749300619194,0.79934,2500.6,2500.5,0.6337]
[1749300619484,0.6829,2500.7,2500.4,0.00599832]
[1749300619691,0.79937,2500.5,2500.4,0.00599832]
[1749300628086,0.79937,2500.5,2500.4,0.80539832]
[1749300628291,0.79937,2500.5,2500.4,0.00599832]
[1749300628789,3.8907,2500.7,2500.5,0.79935]
[1749300628790,4.69002,2500.7,2500.5,0.79935]
[1749300628983,4.69002,2500.7,2500.6,0.79934]
[1749300628984,5.133,2500.7,2500.6,0.79934]
[1749300629187,5.9323,2500.7,2500.6,0.79934]
[1749300629385,5.133,2500.7,2500.6,0.79934]
[1749300629588,5.9323,2500.7,2500.6,0.79934]
[1749300629787,0.79934,2500.6,2500.5,1.43395]
[1749300629988,5.93232,2500.7,2500.5,1.43395]
[1749300630294,0.79934,2500.6,2500.5,1.43395]
[1749300630493,0.79934,2500.6,2500.5,0.6346]
[1749300632279,1.48204,2500.6,2500.5,0.6346]
[1749300632993,0.79934,2500.6,2500.5,0.6346]
[1749300635892,0.79937,2500.5,2500.4,0.00599832]
[1749300636495,0.79937,2500.5,2500.4,0.80539832]
[1749300637196,0.79937,2500.5,2500.4,0.00599832]
[1749300638591,0.79956,2499.9,2499.8,0.15659808]
[1749300639395,2.82316,2499.9,2499.8,0.15659808]
[1749300639593,2.82316,2499.9,2499.1,1.99954]
[1749300639797,0.79965,2499.7,2499.5,0.79966]
[1749300639992,2.0236,2499.9,2499.5,0.79966]
[1749300640202,0.79964,2499.7,2499.5,0.79966]
[1749300640698,0.79964,2499.7,2499.3,0.79972]
[1749300640699,3.2078,2499.7,2499.3,0.79972]
[1749300640886,0.79967,2499.6,2499.1,8.3418]
[1749300641087,1.29459832,2499.6,2499.3,0.79973]
[1749300641287,1.29459832,2499.6,2499.3,0.79975]
[1749300641493,0.6656,2499.5,2499.4,0.79972]
[1749300641891,0.6656,2499.5,2499.1,8.3218]
[1749300641892,0.00599832,2499.6,2499.5,0.79969]
[1749300642795,0.00599832,2499.6,2499.5,1.47409]
[1749300646599,3.2078,2500.2,2500.1,0.7995]
[1749300646798,5.115,2500.4,2500.3,0.79943]
[1749300647701,6.3967,2500.4,2500.3,0.79943]
[1749300649697,7.1961,2500.4,2500.3,0.79943]
[1749300649901,7.1961,2500.4,2500.2,0.79945]
[1749300650504,7.1961,2500.4,2500.3,0.79944]
[1749300652504,5.115,2500.4,2500.3,0.79944]
[1749300653102,5.9144,2500.4,2500.3,0.79944]
[1749300653803,5.115,2500.4,2500.3,0.79944]
[1749300654009,4.00717,2500.5,2500.4,0.7994]
[1749300654205,5.38147,2500.5,2500.4,0.7994]
[1749300654505,3.2078,2500.5,2500.4,0.7994]
[1749300655400,3.2078,2500.5,2500.1,0.00599832]
[1749300655606,4.00717,2500.5,2500.4,0.79939]
[1749300656708,0.79943,2500.3,2500.2,0.79943]
[1749300657009,3.2078,2500.5,2500.2,0.79945]
[1749300657302,1.4001,2500.4,2500.2,0.79945]
[1749300657707,0.79946,2500.2,2500.1,0.00599832]
[1749300658007,4.00726,2500.2,2500.1,0.00599832]
[1749300658703,0.79946,2500.3,2500.2,0.79947]
[1749300658908,0.79947,2500.2,2500.1,0.00599832]
[1749300659205,1.49627,2500.2,2500.1,0.80548832]
[1749300659807,1.49627,2500.2,2500.1,0.00599832]
[1749300660007,1.49627,2500.2,2500.1,0.80549832]
[1749300660208,1.49627,2500.2,2500.1,0.00599832]
[1749300661109,0.6968,2500.2,2500.1,0.80549832]
[1749300661510,4.00718,2500.5,2500.1,0.00599832]
[1749300661711,4.68938,2500.5,2500.1,0.00599832]
[1749300662010,0.7994,2500.4,2500.3,0.79942]
[1749300662207,3.89,2500.5,2500.4,0.7994]
[1749300662208,4.68939,2500.5,2500.4,0.7994]
[1749300662408,4.68939,2500.5,2500.3,0.79941]
[1749300662605,0.7994,2500.4,2500.3,0.79941]
[1749300662810,5.2359,2500.5,2500.3,0.79948]
[1749300663009,5.2359,2500.5,2500.1,0.00599832]
[1749300663310,3.2078,2500.2,2500.1,0.80554832]
[1749300663507,4.00732,2500.2,2500.1,0.00599832]
[1749300663708,3.2078,2500.2,2500.1,0.80554832]
[1749300665113,3.2078,2500.5,2500.2,0.79953]
[1749300665409,3.8724,2500.5,2500.4,0.79946]
[1749300665613,5.192,2500.5,2500.4,0.79946]
[1749300668613,5.99143,2500.5,2500.4,0.79946]
[1749300668818,5.192,2500.5,2500.4,0.79946]
[1749300674819,1.9842,2500.5,2500.4,0.79946]
[1749300675115,5.192,2500.5,2500.4,0.79946]
[1749300676619,5.99143,2500.5,2500.4,0.79946]
[1749300676811,5.192,2500.5,2500.1,0.00599832]
[1749300677116,3.2078,2500.2,2500.1,0.80553832]
[1749300677317,4.00733,2500.2,2500.1,0.80555832]
[1749300677517,3.2078,2500.2,2500.1,0.80555832]
[1749300677917,4.5528,2500.2,2500.1,0.80555832]
[1749300679619,3.2078,2500.2,2500.1,0.80555832]
[1749300679825,3.8724,2500.5,2500.4,0.79946]
[1749300688835,3.2078,2500.5,2500.4,0.79946]
[1749300692439,0.00599832,2500.6,2500.5,0.79943]
[1749300692629,1.30249832,2500.6,2500.5,0.79943]
[1749300693742,1.30249832,2500.6,2500.2,0.666]
[1749300693941,1.30249832,2500.6,2500.3,0.7995]
[1749300693942,3.2078,2500.4,2500.3,0.7995]
[1749300694332,3.8969,2500.4,2500.3,0.7995]
[1749300695238,1.30249832,2500.6,2500.5,0.79943]
[1749300695440,2.98700315,2500.6,2500.5,0.79943]
[1749300704848,2.98700315,2500.6,2500.1,3.18635774]
[1749300705047,2.18133,2500.5,2500.4,0.79946]
[1749300705247,1.3819,2500.5,2500.4,0.79946]
[1749300707050,2.18133,2500.5,2500.4,0.79946]
[1749300707245,2.18133,2500.5,2500.1,0.00599832]
[1749300707246,1.3819,2500.5,2500.1,0.00599832]
[1749300707452,0.69509832,2500.6,2500.1,0.00599832]
[1749300707453,4.5897,2500.4,2500.1,0.00599832]
[1749300707747,3.2078,2500.4,2500.3,0.7995]
[1749300707949,0.79953,2500.2,2500.1,0.00599832]
[1749300708143,0.79953,2500.2,2500.1,0.80555832]
[1749300708344,0.79953,2500.2,2500.1,0.00599832]
[1749300708955,0.79953,2500.2,2500.1,0.80555832]
[1749300709154,3.2078,2500.4,2500.2,0.79953]
[1749300709353,0.99495254,2500.3,2500.2,0.79953]
[1749300712457,4.00729,2500.4,2500.3,0.7995]
[1749300712756,5.00133024,2500.4,2500.3,0.7995]
[1749300713858,0.79951,2500.3,2500.2,0.7995]
[1749300715059,0.99371905,2500.3,2500.2,0.7995]
[1749300717663,1.79321905,2500.3,2500.2,0.7995]
[1749300718561,3.2078,2500.4,2500.3,0.7995]
[1749300718766,4.20108089,2500.4,2500.3,0.7995]
[1749300718961,4.20108089,2500.4,2500.2,0.79951]
[1749300719163,0.79951,2500.3,2500.2,0.79951]
[1749300719567,4.00729,2500.4,2500.3,0.7995]
[1749300719768,6.32345331,2500.4,2500.3,0.7995]
[1749300719962,6.98245331,2500.4,2500.3,0.7995]
[1749300720466,0.79951,2500.3,2500.2,0.79951]
[1749300720667,1.3229,2500.3,2500.2,0.79951]
[1749300721267,2.1224,2500.3,2500.2,0.79951]
[1749300725767,1.3229,2500.3,2500.2,0.79951]
[1749300726670,0.79953,2500.2,2500.1,0.00599832]
[1749300726864,1.45273,2500.2,2500.1,0.00599832]
[1749300727064,2.84003,2500.2,2500.1,0.00599832]
[1749300727673,2.84003,2500.2,2500.1,0.80555832]
[1749300728669,2.84003,2500.2,2500.1,0.00599832]
[1749300729969,2.84003,2500.2,2500.1,0.80555832]
[1749300730972,0.6532,2500.2,2500.1,0.80555832]
[1749300731175,5.075,2500.3,2500.2,0.79953]
[1749300731572,3.8668,2500.4,2500.3,0.7995]
[1749300731775,9.93741892,2500.4,2500.3,0.7995]
[1749300733172,10.73688892,2500.4,2500.3,0.7995]
[1749300733471,12.06048892,2500.4,2500.3,0.7995]
[1749300734275,6.98548892,2500.4,2500.3,0.7995]
[1749300734476,12.04048892,2500.4,2500.3,0.7995]
[1749300736579,12.04102127,2500.4,2500.3,0.7995]
[1749300738384,0.79952,2500.3,2500.2,0.79951]
[1749300738579,3.06357127,2500.3,2500.2,0.79951]
[1749300739583,2.26405127,2500.3,2500.2,0.79951]
[1749300739787,2.26405127,2500.3,2500.1,0.00599832]
[1749300739985,0.99615127,2500.2,2500.1,0.80555832]
[1749300742590,9.72128,2500.4,2500.3,0.7995]
[1749300742887,10.71820286,2500.4,2500.3,0.7995]
[1749300743087,0.7995,2500.3,2500.2,0.79951]
[1749300743289,0.99692286,2500.3,2500.2,0.79951]
[1749300745889,1.79644286,2500.3,2500.1,0.80554832]
[1749300746089,0.99692286,2500.2,2500.1,0.80554832]
[1749300746690,2.19622,2500.3,2500.2,0.79953]
[1749300746891,3.19317755,2500.3,2500.2,0.79953]
[1749300747491,0.79953,2500.2,2500.1,0.00599832]
[1749300747790,3.08718755,2500.2,2500.1,0.00599832]
[1749300747997,3.08718755,2500.2,2500.1,0.80555832]
[1749300748795,2.28765755,2500.2,2500.1,0.80555832]
[1749300749494,8.9218,2500.4,2500.3,0.7995]
[1749300749797,9.91865938,2500.4,2500.3,0.7995]
[1749300750389,10.71812938,2500.4,2500.3,0.7995]
[1749300750895,9.91865938,2500.4,2500.3,0.7995]
[1749300752499,0.79953,2500.2,2500.1,0.00599832]
[1749300752798,1.79638938,2500.2,2500.1,0.00599832]
[1749300754000,1.79638938,2500.2,2500.1,0.80555832]
[1749300754299,0.99685938,2500.2,2500.1,0.80555832]
[1749300754801,2.30275938,2500.2,2500.1,0.80555832]
[1749300755101,2.30278038,2500.2,2500.1,0.80555832]
[1749300755397,3.10231038,2500.2,2500.1,0.80555832]
[1749300755594,2.30278038,2500.2,2500.1,0.80555832]
[1749300755797,3.10231038,2500.2,2500.1,0.80555832]
[1749300758298,2.30278038,2500.2,2500.1,0.80555832]
[1749300761097,2.30278038,2500.2,2500.1,0.00599832]
[1749300761304,2.30278038,2500.2,2500.1,0.80555832]
[1749300761497,3.10231038,2500.2,2500.1,0.80555832]
[1749300761695,2.30278038,2500.2,2500.1,0.80555832]
[1749300762801,3.10231038,2500.2,2500.1,0.00599832]
[1749300763702,3.10231038,2500.2,2500.1,0.80555832]
[1749300764207,2.30278038,2500.2,2500.1,0.80555832]
[1749300764607,2.95378038,2500.2,2500.1,0.80555832]
[1749300764905,3.75331038,2500.2,2500.1,0.80555832]
[1749300765206,2.95378038,2500.2,2500.1,0.80555832]
[1749300765593,3.75331038,2500.2,2500.1,0.80555832]
[1749300766000,2.95378038,2500.2,2500.1,0.80555832]
[1749300768708,1.64788038,2500.2,2500.1,0.80555832]
[1749300768904,3.8668,2500.4,2500.2,0.79952]
[1749300769109,0.99597596,2500.3,2500.2,0.79953]
[1749300772915,1.79547596,2500.3,2500.1,0.80553832]
[1749300773116,0.7995,2500.3,2500.1,0.80553832]
[1749300773410,0.7995,2500.3,2500.2,0.79953]
[1749300773609,1.79543506,2500.3,2500.2,0.79953]
[1749300774315,1.79543506,2500.3,2500.1,0.80553832]
[1749300774510,0.7995,2500.3,2500.1,0.80553832]
[1749300775916,0.79953,2500.2,2500.1,0.00599832]
[1749300777616,0.79953,2500.2,2500.1,0.80555832]
[1749300777816,0.79953,2500.2,2500.1,0.00599832]
[1749300778517,0.79953,2500.2,2500.1,0.80555832]
[1749300778816,0.79953,2500.2,2500.1,0.00599832]
[1749300779519,0.79953,2500.2,2500.1,0.80555832]
[1749300780312,1.79566563,2500.2,2500.1,0.80555832]
[1749300780707,0.99613563,2500.2,2500.1,0.80555832]
[1749300780911,0.79951,2500.3,2500.1,0.80555832]
[1749300781217,4.5423,2500.4,2500.1,0.80555832]
[1749300781218,0.79953,2500.2,2500.1,0.00599832]
[1749300781621,0.79951,2500.3,2500.1,0.80555832]
[1749300782016,4.5423,2500.4,2500.1,0.80555832]
[1749300782315,4.5423,2500.4,2500.1,0.00599832]
[1749300782316,0.99615814,2500.3,2500.1,0.00599832]
[1749300782522,3.2078,2500.4,2500.3,0.7995]
[1749300784128,4.00727,2500.4,2500.3,0.7995]
[1749300784330,3.2078,2500.4,2500.3,0.7995]
[1749300792341,3.2078,2500.4,2500.3,2.1071]
[1749300794042,3.2078,2500.4,2500.3,0.7995]
[1749300797441,0.7995,2500.3,2500.2,0.79951]
[1749300797744,0.7995,2500.3,2500.1,0.00599832]
[1749300797745,0.79953,2500.2,2500.1,0.00599832]
[1749300797937,1.45643,2500.2,2500.1,0.00599832]
[1749300798137,2.81513,2500.2,2500.1,0.00599832]
[1749300800343,2.0156,2500.2,2500.1,0.80555832]
[1749300801546,2.81513,2500.2,2500.1,0.80555832]
[1749300802548,2.0156,2500.2,2500.1,0.80555832]
[1749300803449,2.81513,2500.2,2500.1,0.80555832]
[1749300803648,2.0156,2500.2,2500.1,0.80555832]
[1749300804347,2.81513,2500.2,2500.1,0.00599832]
[1749300805450,2.81513,2500.2,2500.1,0.80555832]
[1749300806344,6.02293,2500.2,2500.1,0.80555832]